fUST/lending_fUST_20250608
["ID","MTS","AMOUNT","RATE_DAILY","PERIOD"]
[364980868,1749377439988,-440.0,0.00019452,2]
[364980870,1749377439998,-440.0,0.00019452,2]
[364980872,1749377440008,-595.88,0.00019452,2]
[364980874,1749377440018,-440.0,0.00019452,2]
[364980876,1749377440027,-440.0,0.00019452,2]
[364980878,1749377440037,-440.0,0.00019452,2]
[364980880,1749377440047,-440.0,0.00019452,2]
[364980882,1749377440056,-440.0,0.00019452,2]
[364980884,1749377440066,-440.0,0.00019452,2]
[364980886,1749377440076,-440.0,0.00019452,2]
[364980888,1749377440085,-621.46,0.00019452,2]
[364980890,1749377440095,-440.0,0.00019452,2]
[364980892,1749377440104,-440.0,0.00019452,2]
[364980894,1749377440114,-440.0,0.00019452,2]
[364980896,1749377440125,-440.0,0.00019452,2]
[364980898,1749377440135,-440.0,0.00019452,2]
[364980900,1749377440146,-460.53,0.00019452,2]
[364980902,1749377440156,-440.0,0.00019452,2]
[364980905,1749377440166,-440.0,0.00019452,2]
[364980907,1749377440180,-415.4451111,0.00019452,2]
[364980909,1749377440190,-572.71,0.00019452,2]
[364980911,1749377440199,-440.0,0.00019452,2]
[364980913,1749377440208,-1377.15,0.00019452,2]
[364980916,1749377440218,-440.0,0.00019452,2]
[364980918,1749377440229,-440.0,0.00019452,2]
[364980919,1749377440240,-956.96,0.00019452,2]
[364980920,1749377440250,-440.0,0.00019452,2]
[364980921,1749377440261,-543.14,0.00019452,2]
[364980922,1749377440271,-440.0,0.00019452,2]
[364980923,1749377440281,-1506.3,0.00019452,2]
[364980924,1749377440291,-440.0,0.00019452,2]
[364980925,1749377440301,-1466.18,0.00019452,2]
[364980926,1749377440310,-1390.15,0.00019452,2]
[364980927,1749377440320,-440.0,0.00019452,2]
[364980928,1749377440330,-440.0,0.00019452,2]
[364980929,1749377440340,-440.0,0.00019452,2]
[364980930,1749377440350,-573.96,0.00019452,2]
[364980931,1749377440360,-871.2,0.00019452,2]
[364980932,1749377440369,-440.0,0.00019452,2]
[364980933,1749377440380,-440.0,0.00019452,2]
[364980934,1749377440391,-1354.75,0.00019452,2]
[364980935,1749377440401,-1432.59,0.00019452,2]
[364980936,1749377440411,-412.05741164,0.00019452,2]
[364980937,1749377440420,-440.0,0.00019452,2]
[364980938,1749377440430,-443.61,0.00019452,2]
[364980939,1749377440440,-440.0,0.00019452,2]
[364980940,1749377440451,-440.0,0.00019452,2]
[364980941,1749377440461,-508.11,0.00019452,2]
[364980942,1749377440470,-834.50537533,0.00019695,2]
[364980943,1749377440480,-423.98131849,0.00019695,2]
[364980944,1749377440489,-229.60437222,0.00019695,2]
[364980945,1749377440499,-842.5625,0.00019695,2]
[364980946,1749377440510,-160.0,0.00019695,2]
[364980947,1749377440519,-213.05153702,0.00019695,2]
[364980948,1749377440529,-160.0,0.00019695,2]
[364980949,1749377440539,-500.0,0.00019707,2]
[364980950,1749377440549,-500.0,0.00019724,2]
[364980951,1749377440559,-430.0,0.00019726,2]
[364980952,1749377440570,-440.0,0.00019726,2]
[364980953,1749377440579,-440.0,0.00019726,2]
[364980954,1749377440589,-440.0,0.00019726,2]
[364980955,1749377440599,-440.0,0.00019726,2]
[364980956,1749377440610,-440.0,0.00019726,2]
[364980957,1749377440622,-595.88,0.00019726,2]
[364980958,1749377440632,-440.0,0.00019726,2]
[364980959,1749377440642,-440.0,0.00019726,2]
[364980960,1749377440653,-440.0,0.00019726,2]
[364980961,1749377440662,-390.0,0.00019726,2]
[364980962,1749377440673,-440.0,0.00019726,2]
[364980963,1749377440683,-440.0,0.00019726,2]
[364980964,1749377440693,-440.0,0.00019726,2]
[364980965,1749377440702,-621.46,0.00019726,2]
[364980966,1749377440712,-258.12,0.00019726,2]
[364980967,1749377440721,-440.0,0.00019726,2]
[364980968,1749377440731,-440.0,0.00019726,2]
[364980969,1749377440740,-460.53,0.00019726,2]
[364980970,1749377440749,-440.0,0.00019726,2]
[364980971,1749377440759,-572.71,0.00019726,2]
[364980972,1749377440769,-440.0,0.00019726,2]
[364980973,1749377440783,-1377.15,0.00019726,2]
[364980974,1749377440796,-440.0,0.00019726,2]
[364980975,1749377440810,-440.0,0.00019726,2]
[364980976,1749377440824,-956.96,0.00019726,2]
[364980977,1749377440837,-440.0,0.00019726,2]
[364980978,1749377440849,-543.14,0.00019726,2]
[364980979,1749377440871,-440.0,0.00019726,2]
[364980980,1749377440888,-1506.3,0.00019726,2]
[364980981,1749377440906,-1466.18,0.00019726,2]
[364980982,1749377440919,-1390.15,0.00019726,2]
[364980983,1749377440933,-440.0,0.00019726,2]
[364980984,1749377440948,-440.0,0.00019726,2]
[364980985,1749377440961,-440.0,0.00019726,2]
[364980986,1749377440975,-871.2,0.00019726,2]
[364980987,1749377440988,-440.0,0.00019726,2]
[364980988,1749377441001,-440.0,0.00019726,2]
[364980989,1749377441015,-1354.75,0.00019726,2]
[364980990,1749377441029,-1432.59,0.00019726,2]
[364980991,1749377441044,-440.0,0.00019726,2]
[364980992,1749377441056,-443.61,0.00019726,2]
[364980993,1749377441068,-344.6,0.00019726,2]
[364980994,1749377441080,-440.0,0.00019726,2]
[364980995,1749377441094,-508.11,0.00019726,2]
[364980996,1749377441109,-1300.0,0.00019787,2]
[364980997,1749377441123,-420.0,0.00019949,2]
[364980998,1749377441136,-336.33339961,0.00019989,2]
[364980999,1749377441150,-464.27,0.0002,2]
[364981000,1749377441164,-440.0,0.0002,2]
[364981001,1749377441179,-353.9295711,0.0002,2]
[364981002,1749377441193,-440.0,0.0002,2]
[364981003,1749377441204,-595.88,0.0002,2]
[364981004,1749377441215,-440.0,0.0002,2]
[364981005,1749377441227,-440.0,0.0002,2]
[364981006,1749377441239,-440.0,0.0002,2]
[364981007,1749377441252,-440.0,0.0002,2]
[364981008,1749377441263,-440.0,0.0002,2]
[364981009,1749377441276,-621.46,0.0002,2]
[364981010,1749377441288,-440.0,0.0002,2]
[364981011,1749377441301,-440.0,0.0002,2]
[364981012,1749377441314,-460.53,0.0002,2]
[364981013,1749377441328,-440.0,0.0002,2]
[364981014,1749377441342,-572.71,0.0002,2]
[364981015,1749377441356,-440.0,0.0002,2]
[364981017,1749377441370,-1377.15,0.0002,2]
[364981018,1749377441383,-440.0,0.0002,2]
[364981019,1749377441397,-440.0,0.0002,2]
[364981020,1749377441413,-956.96,0.0002,2]
[364981021,1749377441426,-440.0,0.0002,2]
[364981022,1749377441436,-543.14,0.0002,2]
[364981023,1749377441452,-440.0,0.0002,2]
[364981024,1749377441463,-1506.3,0.0002,2]
[364981025,1749377441477,-1466.18,0.0002,2]
[364981026,1749377441489,-1390.15,0.0002,2]
[364981027,1749377441503,-440.0,0.0002,2]
[364981028,1749377441517,-440.0,0.0002,2]
[364981029,1749377441528,-440.0,0.0002,2]
[364981030,1749377441539,-871.2,0.0002,2]
[364981031,1749377441549,-440.0,0.0002,2]
[364981032,1749377441561,-1354.75,0.0002,2]
[364981033,1749377441572,-1432.59,0.0002,2]
[364981034,1749377441584,-443.61,0.0002,2]
[364981035,1749377441599,-440.0,0.0002,2]
[364981036,1749377441612,-508.11,0.0002,2]
[364981037,1749377441623,-1680.0,0.00020047,2]
[364981038,1749377441634,-180.355,0.00020136,2]
[364981039,1749377441646,-159.58732754,0.00020152,2]
[364981040,1749377441656,-263.134113,0.00020187,2]
[364981041,1749377441668,-1000.0,0.00020255,2]
[364981042,1749377441679,-800.0,0.00020258,2]
[364981043,1749377441691,-440.0,0.00020273,2]
[364981044,1749377441702,-230.51221208,0.00020273,2]
[364981045,1749377441715,-595.88,0.00020273,2]
[364981046,1749377441727,-440.0,0.00020273,2]
[364981047,1749377441740,-440.0,0.00020273,2]
[364981048,1749377441752,-440.0,0.00020273,2]
[364981049,1749377441764,-440.0,0.00020273,2]
[364981050,1749377441775,-440.0,0.00020273,2]
[364981051,1749377441788,-621.46,0.00020273,2]
[364981052,1749377441800,-440.0,0.00020273,2]
[364981053,1749377441812,-440.0,0.00020273,2]
[364981054,1749377441824,-460.53,0.00020273,2]
[364981055,1749377441838,-440.0,0.00020273,2]
[364981056,1749377441850,-572.71,0.00020273,2]
[364981057,1749377441862,-440.0,0.00020273,2]
[364981058,1749377441873,-1377.15,0.00020273,2]
[364981059,1749377441885,-440.0,0.00020273,2]
[364981060,1749377441897,-440.0,0.00020273,2]
[364981061,1749377441909,-956.96,0.00020273,2]
[364981062,1749377441921,-153.4,0.00020273,2]
[364981063,1749377441934,-543.14,0.00020273,2]
[364981064,1749377441946,-440.0,0.00020273,2]
[364981065,1749377441959,-1506.3,0.00020273,2]
[364981066,1749377441971,-1466.18,0.00020273,2]
[364981067,1749377441983,-1390.15,0.00020273,2]
[364981068,1749377441995,-440.0,0.00020273,2]
[364981069,1749377442007,-440.0,0.00020273,2]
[364981070,1749377442020,-440.0,0.00020273,2]
[364981071,1749377442033,-871.2,0.00020273,2]
[364981072,1749377442046,-440.0,0.00020273,2]
[364981073,1749377442057,-1354.75,0.00020273,2]
[364981074,1749377442069,-1432.59,0.00020273,2]
[364981075,1749377442081,-443.61,0.00020273,2]
[364981076,1749377442097,-440.0,0.00020273,2]
[364981077,1749377442108,-508.11,0.00020273,2]
[364981078,1749377442120,-3617.15,0.00020317,2]
[364981079,1749377442131,-440.0,0.00020547,2]
[364981080,1749377442143,-595.88,0.00020547,2]
[364981081,1749377442155,-440.0,0.00020547,2]
[364981082,1749377442166,-440.0,0.00020547,2]
[364981083,1749377442183,-440.0,0.00020547,2]
[364981084,1749377442195,-440.0,0.00020547,2]
[364981085,1749377442209,-226.12,0.00020547,2]
[364981086,1749377442222,-621.46,0.00020547,2]
[364981087,1749377442234,-440.0,0.00020547,2]
[364981088,1749377442247,-440.0,0.00020547,2]
[364981089,1749377442261,-460.53,0.00020547,2]
[364981090,1749377442272,-440.0,0.00020547,2]
[364981091,1749377442285,-572.71,0.00020547,2]
[364981092,1749377442297,-440.0,0.00020547,2]
[364981093,1749377442308,-1377.15,0.00020547,2]
[364981094,1749377442477,-440.0,0.00020547,2]
[364981095,1749377442488,-440.0,0.00020547,2]
[364981096,1749377442499,-956.96,0.00020547,2]
[364981097,1749377442508,-543.14,0.00020547,2]
[364981098,1749377442517,-440.0,0.00020547,2]
[364981099,1749377442526,-1506.3,0.00020547,2]
[364981100,1749377442536,-1466.18,0.00020547,2]
[364981101,1749377442547,-1390.15,0.00020547,2]
[364981102,1749377442558,-440.0,0.00020547,2]
[364981103,1749377442567,-440.0,0.00020547,2]
[364981104,1749377442578,-440.0,0.00020547,2]
[364981105,1749377442588,-871.2,0.00020547,2]
[364981106,1749377442598,-440.0,0.00020547,2]
[364981107,1749377442608,-1354.75,0.00020547,2]
[364981108,1749377442620,-1432.59,0.00020547,2]
[364981109,1749377442631,-443.61,0.00020547,2]
[364981110,1749377442641,-440.0,0.00020547,2]
[364981111,1749377442651,-508.11,0.00020547,2]
[364981112,1749377442660,-789.35,0.000206,2]
[364981113,1749377442670,-336.33339961,0.00020626,2]
[364981114,1749377442680,-1000.0,0.00020803,2]
[364981115,1749377442689,-413.21277726,0.00020821,2]
[364981116,1749377442699,-595.88,0.00020821,2]
[364981117,1749377442708,-440.0,0.00020821,2]
[364981118,1749377442718,-440.0,0.00020821,2]
[364981119,1749377442727,-440.0,0.00020821,2]
[364981120,1749377442737,-416.5,0.00020821,2]
[364981121,1749377442746,-621.46,0.00020821,2]
[364981122,1749377442755,-489.32,0.00020821,2]
[364981123,1749377442764,-440.0,0.00020821,2]
[364981124,1749377442774,-460.53,0.00020821,2]
[364981125,1749377442783,-440.0,0.00020821,2]
[364981126,1749377442793,-572.71,0.00020821,2]
[364981127,1749377442802,-440.0,0.00020821,2]
[364981128,1749377442812,-1377.15,0.00020821,2]
[364981129,1749377442821,-440.0,0.00020821,2]
[364981130,1749377442831,-440.0,0.00020821,2]
[364981131,1749377442841,-956.96,0.00020821,2]
[364981132,1749377442850,-543.14,0.00020821,2]
[364981133,1749377442873,-440.0,0.00020821,2]
[364981134,1749377442885,-1506.3,0.00020821,2]
[364981135,1749377442895,-1466.18,0.00020821,2]
[364981136,1749377442905,-1390.15,0.00020821,2]
[364981137,1749377442915,-440.0,0.00020821,2]
[364981138,1749377442925,-440.0,0.00020821,2]
[364981139,1749377442935,-871.2,0.00020821,2]
[364981140,1749377442945,-536.51,0.00020821,2]
[364981141,1749377442955,-1354.75,0.00020821,2]
[364981142,1749377442965,-1432.59,0.00020821,2]
[364981143,1749377442975,-443.61,0.00020821,2]
[364981144,1749377442986,-440.0,0.00020821,2]
[364981145,1749377442995,-508.11,0.00020821,2]
[364981146,1749377443005,-1300.0,0.00020883,2]
[364981148,1749377443015,-500.0,0.00021093,2]
[364981149,1749377443025,-595.88,0.00021095,2]
[364981150,1749377443035,-325.81839602,0.00021095,2]
[364981151,1749377443045,-440.0,0.00021095,2]
[364981152,1749377443055,-440.0,0.00021095,2]
[364981153,1749377443065,-621.46,0.00021095,2]
[364981154,1749377443075,-440.0,0.00021095,2]
[364981155,1749377443085,-460.53,0.00021095,2]
[364981156,1749377443095,-440.0,0.00021095,2]
[364981157,1749377443106,-572.71,0.00021095,2]
[364981158,1749377443116,-440.0,0.00021095,2]
[364981159,1749377443127,-1377.15,0.00021095,2]
[364981160,1749377443138,-440.0,0.00021095,2]
[364981161,1749377443148,-486.16,0.00021095,2]
[364981162,1749377443158,-956.96,0.00021095,2]
[364981163,1749377443168,-543.14,0.00021095,2]
[364981164,1749377443181,-440.0,0.00021095,2]
[364981165,1749377443191,-1506.3,0.00021095,2]
[364981166,1749377443201,-1466.18,0.00021095,2]
[364981167,1749377443211,-1390.15,0.00021095,2]
[364981168,1749377443222,-440.0,0.00021095,2]
[364981169,1749377443232,-440.0,0.00021095,2]
[364981170,1749377443242,-871.2,0.00021095,2]
[364981171,1749377443252,-1354.75,0.00021095,2]
[364981172,1749377443262,-1432.59,0.00021095,2]
[364981173,1749377443273,-443.61,0.00021095,2]
[364981174,1749377443283,-440.0,0.00021095,2]
[364981175,1749377443294,-508.11,0.00021095,2]
[364981177,1749377443304,-4822.87,0.000212,2]
[364981179,1749377443313,-159.58732754,0.00021237,2]
[364981181,1749377443323,-336.33339961,0.00021263,2]
[364981183,1749377443333,-800.0,0.00021321,2]
[364981185,1749377443344,-595.88,0.00021369,2]
[364981188,1749377443354,-621.46,0.00021369,2]
[364981190,1749377443364,-440.0,0.00021369,2]
[364981192,1749377443374,-460.53,0.00021369,2]
[364981194,1749377443384,-440.0,0.00021369,2]
[364981196,1749377443395,-572.71,0.00021369,2]
[364981198,1749377443404,-440.0,0.00021369,2]
[364981200,1749377443415,-1377.15,0.00021369,2]
[364981202,1749377443424,-485.87217665,0.00021369,2]
[364981204,1749377443434,-956.96,0.00021369,2]
[364981206,1749377443444,-543.14,0.00021369,2]
[364981208,1749377443454,-440.0,0.00021369,2]
[364981210,1749377443464,-1506.3,0.00021369,2]
[364981212,1749377443474,-1466.18,0.00021369,2]
[364981215,1749377443489,-1390.15,0.00021369,2]
[364981217,1749377443498,-440.0,0.00021369,2]
[364981219,1749377443508,-440.0,0.00021369,2]
[364981221,1749377443518,-871.2,0.00021369,2]
[364981224,1749377443528,-1354.75,0.00021369,2]
[364981227,1749377443538,-1432.59,0.00021369,2]
[364981230,1749377443549,-443.61,0.00021369,2]
[364981234,1749377443559,-440.0,0.00021369,2]
[364981236,1749377443569,-508.11,0.00021369,2]
[364981238,1749377443579,-800.0,0.00021397,2]
[364981240,1749377443589,-800.0,0.0002149,2]
[364981242,1749377443599,-182.94440693,0.00021547,2]
[364981244,1749377443609,-3000.0,0.000216,2]
[364981246,1749377443619,-3000.0,0.0002161,2]
[364981248,1749377443630,-3000.0,0.0002162,2]
[364981250,1749377443640,-3813.080659,0.0002163,2]
[364981252,1749377443650,-595.88,0.00021643,2]
[364981254,1749377443660,-621.46,0.00021643,2]
[364981257,1749377443670,-449.32,0.00021643,2]
[364981259,1749377443680,-460.53,0.00021643,2]
[364981261,1749377443690,-440.0,0.00021643,2]
[364981263,1749377443701,-572.71,0.00021643,2]
[364981265,1749377443711,-440.0,0.00021643,2]
[364981267,1749377443721,-1377.15,0.00021643,2]
[364981269,1749377443731,-956.96,0.00021643,2]
[364981271,1749377443741,-543.14,0.00021643,2]
[364981273,1749377443752,-440.0,0.00021643,2]
[364981275,1749377443762,-1506.3,0.00021643,2]
[364981277,1749377443771,-1466.18,0.00021643,2]
[364981280,1749377443783,-1390.15,0.00021643,2]
[364981282,1749377443793,-440.0,0.00021643,2]
[364981284,1749377443803,-440.0,0.00021643,2]
[364981286,1749377443812,-871.2,0.00021643,2]
[364981288,1749377443822,-1354.75,0.00021643,2]
[364981290,1749377443832,-1432.59,0.00021643,2]
[364981292,1749377443841,-443.61,0.00021643,2]
[364981294,1749377443851,-440.0,0.00021643,2]
[364981296,1749377443860,-508.11,0.00021643,2]
[364981298,1749377443871,-587.0,0.0002176,2]
[364981300,1749377443882,-336.33339961,0.000219,2]
[364981302,1749377443892,-500.0,0.00021917,2]
[364981304,1749377443902,-500.0,0.00021917,2]
[364981306,1749377443911,-500.0,0.00021917,2]
[364981308,1749377443921,-500.0,0.00021917,2]
[364981310,1749377443931,-500.0,0.00021917,2]
[364981312,1749377443941,-500.0,0.00021917,2]
[364981314,1749377443951,-508.34594437,0.00021917,2]
[364981316,1749377443961,-595.88,0.00021917,2]
[364981319,1749377443971,-621.46,0.00021917,2]
[364981321,1749377443982,-460.53,0.00021917,2]
[364981323,1749377443991,-450.41,0.00021917,2]
[364981325,1749377444001,-572.71,0.00021917,2]
[364981327,1749377444011,-554.22,0.00021917,2]
[364981329,1749377444020,-1377.15,0.00021917,2]
[364981331,1749377444030,-956.96,0.00021917,2]
[364981333,1749377444040,-543.14,0.00021917,2]
[364981335,1749377444050,-440.0,0.00021917,2]
[364981337,1749377444059,-1506.3,0.00021917,2]
[364981339,1749377444069,-1466.18,0.00021917,2]
[364981341,1749377444078,-1390.15,0.00021917,2]
[364981343,1749377444088,-440.0,0.00021917,2]
[364981345,1749377444098,-440.0,0.00021917,2]
[364981347,1749377444110,-871.2,0.00021917,2]
[364981350,1749377444119,-1354.75,0.00021917,2]
[364981352,1749377444130,-1432.59,0.00021917,2]
[364981354,1749377444140,-443.61,0.00021917,2]
[364981356,1749377444150,-440.0,0.00021917,2]
[364981358,1749377444160,-508.11,0.00021917,2]
[364981360,1749377444169,-153.0,0.00021918,2]
[364981361,1749377444185,-153.0,0.00021918,2]
[364981364,1749377444195,-153.0,0.00021918,2]
[364981366,1749377444205,-153.0,0.00021918,2]
[364981368,1749377444214,-153.0,0.00021918,2]
[364981370,1749377444226,-153.0,0.00021918,2]
[364981372,1749377444236,-153.0,0.00021918,2]
[364981374,1749377444246,-153.0,0.00021918,2]
[364981376,1749377444258,-153.0,0.00021918,2]
[364981378,1749377444269,-153.0,0.00021918,2]
[364981379,1749377444279,-153.0,0.00021918,2]
[364981380,1749377444288,-153.0,0.00021918,2]
[364981381,1749377444297,-153.0,0.00021918,2]
[364981382,1749377444307,-153.0,0.00021918,2]
[364981383,1749377444317,-153.0,0.00021918,2]
[364981384,1749377444327,-153.0,0.00021918,2]
[364981385,1749377444337,-153.0,0.00021918,2]
[364981386,1749377444347,-153.0,0.00021918,2]
[364981387,1749377444358,-153.0,0.00021918,2]
[364981388,1749377444368,-153.0,0.00021918,2]
[364981389,1749377444378,-153.0,0.00021918,2]
[364981390,1749377444388,-153.0,0.00021918,2]
[364981391,1749377444398,-153.0,0.00021918,2]
[364981392,1749377444408,-153.0,0.00021918,2]
[364981393,1749377444418,-153.0,0.00021918,2]
[364981394,1749377444428,-153.0,0.00021918,2]
[364981395,1749377444438,-153.0,0.00021918,2]
[364981396,1749377444448,-153.0,0.00021918,2]
[364981397,1749377444459,-153.0,0.00021918,2]
[364981398,1749377444469,-153.0,0.00021918,2]
[364981399,1749377444479,-153.0,0.00021918,2]
[364981400,1749377444490,-153.0,0.00021918,2]
[364981401,1749377444501,-153.0,0.00021918,2]
[364981402,1749377444511,-153.0,0.00021918,2]
[364981403,1749377444520,-153.0,0.00021918,2]
[364981404,1749377444531,-153.0,0.00021918,2]
[364981405,1749377444541,-153.0,0.00021918,2]
[364981406,1749377444553,-153.0,0.00021918,2]
[364981407,1749377444563,-153.0,0.00021918,2]
[364981408,1749377444573,-153.0,0.00021918,2]
[364981409,1749377444585,-153.0,0.00021918,2]
[364981410,1749377444594,-153.0,0.00021918,2]
[364981411,1749377444604,-153.0,0.00021918,2]
[364981412,1749377444615,-153.0,0.00021918,2]
[364981413,1749377444625,-153.0,0.00021918,2]
[364981414,1749377444635,-153.0,0.00021918,2]
[364981415,1749377444645,-153.0,0.00021918,2]
[364981416,1749377444656,-153.0,0.00021918,2]
[364981417,1749377444666,-153.0,0.00021918,2]
[364981418,1749377444676,-153.0,0.00021918,2]
[364981419,1749377444686,-153.0,0.00021918,2]
[364981420,1749377444696,-153.0,0.00021918,2]
[364981421,1749377444706,-153.0,0.00021918,2]
[364981422,1749377444715,-153.0,0.00021918,2]
[364981423,1749377444725,-153.0,0.00021918,2]
[364981424,1749377444735,-153.0,0.00021918,2]
[364981425,1749377444744,-153.0,0.00021918,2]
[364981426,1749377444754,-153.0,0.00021918,2]
[364981427,1749377444764,-153.0,0.00021918,2]
[364981428,1749377444774,-153.0,0.00021918,2]
[364981429,1749377444784,-153.0,0.00021918,2]
[364981430,1749377444794,-153.0,0.00021918,2]
[364981431,1749377444804,-153.0,0.00021918,2]
[364981432,1749377444814,-153.0,0.00021918,2]
[364981433,1749377444824,-153.0,0.00021918,2]
[364981434,1749377444834,-153.0,0.00021918,2]
[364981435,1749377444845,-153.0,0.00021918,2]
[364981436,1749377444854,-153.0,0.00021918,2]
[364981437,1749377444864,-153.0,0.00021918,2]
[364981438,1749377444874,-153.0,0.00021918,2]
[364981439,1749377444884,-153.0,0.00021918,2]
[364981440,1749377444894,-153.0,0.00021918,2]
[364981441,1749377444904,-153.0,0.00021918,2]
[364981442,1749377444914,-153.0,0.00021918,2]
[364981443,1749377444924,-153.0,0.00021918,2]
[364981444,1749377444934,-153.0,0.00021918,2]
[364981445,1749377444944,-153.0,0.00021918,2]
[364981446,1749377444953,-153.0,0.00021918,2]
[364981447,1749377444963,-153.0,0.00021918,2]
[364981448,1749377444973,-153.0,0.00021918,2]
[364981449,1749377444982,-153.0,0.00021918,2]
[364981450,1749377444993,-153.0,0.00021918,2]
[364981451,1749377445003,-153.0,0.00021918,2]
[364981452,1749377445013,-153.0,0.00021918,2]
[364981453,1749377445024,-153.0,0.00021918,2]
[364981454,1749377445034,-153.0,0.00021918,2]
[364981455,1749377445044,-153.0,0.00021918,2]
[364981456,1749377445054,-153.0,0.00021918,2]
[364981457,1749377445064,-153.0,0.00021918,2]
[364981458,1749377445075,-153.0,0.00021918,2]
[364981459,1749377445087,-153.0,0.00021918,2]
[364981460,1749377445098,-153.0,0.00021918,2]
[364981461,1749377445110,-153.0,0.00021918,2]
[364981462,1749377445120,-153.0,0.00021918,2]
[364981463,1749377445132,-153.0,0.00021918,2]
[364981464,1749377445142,-153.0,0.00021918,2]
[364981465,1749377445153,-153.0,0.00021918,2]
[364981466,1749377445163,-153.0,0.00021918,2]
[364981467,1749377445177,-153.0,0.00021918,2]
[364981468,1749377445187,-153.0,0.00021918,2]
[364981469,1749377445197,-153.0,0.00021918,2]
[364981470,1749377445208,-153.0,0.00021918,2]
[364981471,1749377445218,-153.0,0.00021918,2]
[364981472,1749377445441,-153.0,0.00021918,2]
[364981473,1749377445451,-153.0,0.00021918,2]
[364981474,1749377445461,-153.0,0.00021918,2]
[364981475,1749377445472,-153.0,0.00021918,2]
[364981476,1749377445483,-153.0,0.00021918,2]
[364981477,1749377445493,-153.0,0.00021918,2]
[364981478,1749377445504,-153.0,0.00021918,2]
[364981479,1749377445515,-153.0,0.00021918,2]
[364981480,1749377445525,-153.0,0.00021918,2]
[364981481,1749377445535,-153.0,0.00021918,2]
[364981482,1749377445546,-153.0,0.00021918,2]
[364981483,1749377445556,-153.0,0.00021918,2]
[364981484,1749377445565,-153.0,0.00021918,2]
[364981485,1749377445575,-153.0,0.00021918,2]
[364981486,1749377445586,-153.0,0.00021918,2]
[364981487,1749377445595,-153.0,0.00021918,2]
[364981488,1749377445605,-153.0,0.00021918,2]
[364981489,1749377445616,-153.0,0.00021918,2]
[364981490,1749377445628,-153.0,0.00021918,2]
[364981491,1749377445638,-153.0,0.00021918,2]
[364981492,1749377445800,-153.0,0.00021918,2]
[364981493,1749377445824,-153.0,0.00021918,2]
[364981494,1749377445835,-153.0,0.00021918,2]
[364981495,1749377445845,-153.0,0.00021918,2]
[364981496,1749377445856,-153.0,0.00021918,2]
[364981497,1749377445866,-153.0,0.00021918,2]
[364981498,1749377445876,-153.0,0.00021918,2]
[364981499,1749377445887,-153.0,0.00021918,2]
[364981500,1749377445897,-153.0,0.00021918,2]
[364981501,1749377445907,-153.0,0.00021918,2]
[364981502,1749377445919,-153.0,0.00021918,2]